{"text_format":"1","workbook":"xlsx","n_sheets":1,"sheets":["Write county name & ID no. here"],"not_rendered":{"charts":0,"images":0,"macros":1,"external_links":0,"defined_names":0,"comments":1,"pivot_tables":0},"unopened":[],"bounds":{"document_bytes":16777216,"sheet_cells":100000,"rows_first":2000,"rows_last":500,"rows_between":2000,"halvings":0,"cell_chars":16384,"cell_head_chars":4096},"cells_cut":0,"cells_raw":0,"read":"whole","date_system":"1900"}

{"sheet":"Write county name & ID no. here","index":0,"n_rows":53,"n_cols":19,"rows_kept":53,"cut":false,"hidden":false,"merged":[]}
["Approval Name","On Behalf Of","National Scout Organisation","Guest Category","Email","JID-ID (i.e. the Unique jamboree identification number for each person. See guidance box)","UK County (or Nation)","Guest Type","Qty (APL)","Qty (PAX)","Qty (CMT)","First Name","Last Name","Date of Birth (YYYY-MM-DD)","Travel Document number (e.g. Passport no. or National ID for EU Citizens)","Dietary requirements (if n/a please write \"Standard\")","Designated Adult Patrol Leader (APL) Mobile Number","In Case of Emergency (ICE) contact phone number, followed by Emergency Contact full name","Wheelchair user (yes/no)"]
["EJPT / Contingent Support","UK United Kingdom","The Scout Association",null,null,"UK-##-A-00",null,"APL (primary)",{"$f":"COUNTIF(registration[[#This Row],[Guest Type]],\"*APL*\")","v":1},{"$f":"COUNTIF(registration[[#This Row],[Guest Type]],\"PAX\")","v":0},{"$f":"COUNTIF(registration[[#This Row],[Guest Type]],CMT)","v":0}]
["EJPT / Contingent Support","UK United Kingdom","The Scout Association",null,null,"UK-##-B-00",null,"APL",{"$f":"COUNTIF(registration[[#This Row],[Guest Type]],\"*APL*\")","v":1},{"$f":"COUNTIF(registration[[#This Row],[Guest Type]],\"PAX\")","v":0},{"$f":"COUNTIF(registration[[#This Row],[Guest Type]],CMT)","v":0}]
["EJPT / Contingent Support","UK United Kingdom","The Scout Association",null,null,"UK-##-C-00",null,"APL",{"$f":"COUNTIF(registration[[#This Row],[Guest Type]],\"*APL*\")","v":1},{"$f":"COUNTIF(registration[[#This Row],[Guest Type]],\"PAX\")","v":0},{"$f":"COUNTIF(registration[[#This Row],[Guest Type]],CMT)","v":0}]
["EJPT / Contingent Support","UK United Kingdom","The Scout Association",null,null,"UK-##-D-00",null,"APL",{"$f":"COUNTIF(registration[[#This Row],[Guest Type]],\"*APL*\")","v":1},{"$f":"COUNTIF(registration[[#This Row],[Guest Type]],\"PAX\")","v":0},{"$f":"COUNTIF(registration[[#This Row],[Guest Type]],CMT)","v":0}]
["EJPT / Contingent Support","UK United Kingdom","The Scout Association",null,null,"UK-##-A-01",null,"PAX",{"$f":"COUNTIF(registration[[#This Row],[Guest Type]],\"*APL*\")","v":0},{"$f":"COUNTIF(registration[[#This Row],[Guest Type]],\"PAX\")","v":1},{"$f":"COUNTIF(registration[[#This Row],[Guest Type]],CMT)","v":0}]
["EJPT / Contingent Support","UK United Kingdom","The Scout Association",null,null,"UK-##-A-02",null,"PAX",{"$f":"COUNTIF(registration[[#This Row],[Guest Type]],\"*APL*\")","v":0},{"$f":"COUNTIF(registration[[#This Row],[Guest Type]],\"PAX\")","v":1},{"$f":"COUNTIF(registration[[#This Row],[Guest Type]],CMT)","v":0}]
["EJPT / Contingent Support","UK United Kingdom","The Scout Association",null,null,"UK-##-A-03",null,"PAX",{"$f":"COUNTIF(registration[[#This Row],[Guest Type]],\"*APL*\")","v":0},{"$f":"COUNTIF(registration[[#This Row],[Guest Type]],\"PAX\")","v":1},{"$f":"COUNTIF(registration[[#This Row],[Guest Type]],CMT)","v":0}]
["EJPT / Contingent Support","UK United Kingdom","The Scout Association",null,null,"UK-##-A-04",null,"PAX",{"$f":"COUNTIF(registration[[#This Row],[Guest Type]],\"*APL*\")","v":0},{"$f":"COUNTIF(registration[[#This Row],[Guest Type]],\"PAX\")","v":1},{"$f":"COUNTIF(registration[[#This Row],[Guest Type]],CMT)","v":0}]
["EJPT / Contingent Support","UK United Kingdom","The Scout Association",null,null,"UK-##-A-05",null,"PAX",{"$f":"COUNTIF(registration[[#This Row],[Guest Type]],\"*APL*\")","v":0},{"$f":"COUNTIF(registration[[#This Row],[Guest Type]],\"PAX\")","v":1},{"$f":"COUNTIF(registration[[#This Row],[Guest Type]],CMT)","v":0}]
["EJPT / Contingent Support","UK United Kingdom","The Scout Association",null,null,"UK-##-A-06",null,"PAX",{"$f":"COUNTIF(registration[[#This Row],[Guest Type]],\"*APL*\")","v":0},{"$f":"COUNTIF(registration[[#This Row],[Guest Type]],\"PAX\")","v":1},{"$f":"COUNTIF(registration[[#This Row],[Guest Type]],CMT)","v":0}]
["EJPT / Contingent Support","UK United Kingdom","The Scout Association",null,null,"UK-##-A-07",null,"PAX",{"$f":"COUNTIF(registration[[#This Row],[Guest Type]],\"*APL*\")","v":0},{"$f":"COUNTIF(registration[[#This Row],[Guest Type]],\"PAX\")","v":1},{"$f":"COUNTIF(registration[[#This Row],[Guest Type]],CMT)","v":0}]
["EJPT / Contingent Support","UK United Kingdom","The Scout Association",null,null,"UK-##-A-08",null,"PAX",{"$f":"COUNTIF(registration[[#This Row],[Guest Type]],\"*APL*\")","v":0},{"$f":"COUNTIF(registration[[#This Row],[Guest Type]],\"PAX\")","v":1},{"$f":"COUNTIF(registration[[#This Row],[Guest Type]],CMT)","v":0}]
["EJPT / Contingent Support","UK United Kingdom","The Scout Association",null,null,"UK-##-B-09",null,"PAX",{"$f":"COUNTIF(registration[[#This Row],[Guest Type]],\"*APL*\")","v":0},{"$f":"COUNTIF(registration[[#This Row],[Guest Type]],\"PAX\")","v":1},{"$f":"COUNTIF(registration[[#This Row],[Guest Type]],CMT)","v":0}]
["EJPT / Contingent Support","UK United Kingdom","The Scout Association",null,null,"UK-##-B-01",null,"PAX",{"$f":"COUNTIF(registration[[#This Row],[Guest Type]],\"*APL*\")","v":0},{"$f":"COUNTIF(registration[[#This Row],[Guest Type]],\"PAX\")","v":1},{"$f":"COUNTIF(registration[[#This Row],[Guest Type]],CMT)","v":0}]
["EJPT / Contingent Support","UK United Kingdom","The Scout Association",null,null,"UK-##-B-02",null,"PAX",{"$f":"COUNTIF(registration[[#This Row],[Guest Type]],\"*APL*\")","v":0},{"$f":"COUNTIF(registration[[#This Row],[Guest Type]],\"PAX\")","v":1},{"$f":"COUNTIF(registration[[#This Row],[Guest Type]],CMT)","v":0}]
["EJPT / Contingent Support","UK United Kingdom","The Scout Association",null,null,"UK-##-B-03",null,"PAX",{"$f":"COUNTIF(registration[[#This Row],[Guest Type]],\"*APL*\")","v":0},{"$f":"COUNTIF(registration[[#This Row],[Guest Type]],\"PAX\")","v":1},{"$f":"COUNTIF(registration[[#This Row],[Guest Type]],CMT)","v":0}]
["EJPT / Contingent Support","UK United Kingdom","The Scout Association",null,null,"UK-##-B-04",null,"PAX",{"$f":"COUNTIF(registration[[#This Row],[Guest Type]],\"*APL*\")","v":0},{"$f":"COUNTIF(registration[[#This Row],[Guest Type]],\"PAX\")","v":1},{"$f":"COUNTIF(registration[[#This Row],[Guest Type]],CMT)","v":0}]
["EJPT / Contingent Support","UK United Kingdom","The Scout Association",null,null,"UK-##-B-05",null,"PAX",{"$f":"COUNTIF(registration[[#This Row],[Guest Type]],\"*APL*\")","v":0},{"$f":"COUNTIF(registration[[#This Row],[Guest Type]],\"PAX\")","v":1},{"$f":"COUNTIF(registration[[#This Row],[Guest Type]],CMT)","v":0}]
["EJPT / Contingent Support","UK United Kingdom","The Scout Association",null,null,"UK-##-B-06",null,"PAX",{"$f":"COUNTIF(registration[[#This Row],[Guest Type]],\"*APL*\")","v":0},{"$f":"COUNTIF(registration[[#This Row],[Guest Type]],\"PAX\")","v":1},{"$f":"COUNTIF(registration[[#This Row],[Guest Type]],CMT)","v":0}]
["EJPT / Contingent Support","UK United Kingdom","The Scout Association",null,null,"UK-##-B-07",null,"PAX",{"$f":"COUNTIF(registration[[#This Row],[Guest Type]],\"*APL*\")","v":0},{"$f":"COUNTIF(registration[[#This Row],[Guest Type]],\"PAX\")","v":1},{"$f":"COUNTIF(registration[[#This Row],[Guest Type]],CMT)","v":0}]
["EJPT / Contingent Support","UK United Kingdom","The Scout Association",null,null,"UK-##-B-08",null,"PAX",{"$f":"COUNTIF(registration[[#This Row],[Guest Type]],\"*APL*\")","v":0},{"$f":"COUNTIF(registration[[#This Row],[Guest Type]],\"PAX\")","v":1},{"$f":"COUNTIF(registration[[#This Row],[Guest Type]],CMT)","v":0}]
["EJPT / Contingent Support","UK United Kingdom","The Scout Association",null,null,"UK-##-B-09",null,"PAX",{"$f":"COUNTIF(registration[[#This Row],[Guest Type]],\"*APL*\")","v":0},{"$f":"COUNTIF(registration[[#This Row],[Guest Type]],\"PAX\")","v":1},{"$f":"COUNTIF(registration[[#This Row],[Guest Type]],CMT)","v":0}]
["EJPT / Contingent Support","UK United Kingdom","The Scout Association",null,null,"UK-##-C-01",null,"PAX",{"$f":"COUNTIF(registration[[#This Row],[Guest Type]],\"*APL*\")","v":0},{"$f":"COUNTIF(registration[[#This Row],[Guest Type]],\"PAX\")","v":1},{"$f":"COUNTIF(registration[[#This Row],[Guest Type]],CMT)","v":0}]
["EJPT / Contingent Support","UK United Kingdom","The Scout Association",null,null,"UK-##-C-02",null,"PAX",{"$f":"COUNTIF(registration[[#This Row],[Guest Type]],\"*APL*\")","v":0},{"$f":"COUNTIF(registration[[#This Row],[Guest Type]],\"PAX\")","v":1},{"$f":"COUNTIF(registration[[#This Row],[Guest Type]],CMT)","v":0}]
["EJPT / Contingent Support","UK United Kingdom","The Scout Association",null,null,"UK-##-C-03",null,"PAX",{"$f":"COUNTIF(registration[[#This Row],[Guest Type]],\"*APL*\")","v":0},{"$f":"COUNTIF(registration[[#This Row],[Guest Type]],\"PAX\")","v":1},{"$f":"COUNTIF(registration[[#This Row],[Guest Type]],CMT)","v":0}]
["EJPT / Contingent Support","UK United Kingdom","The Scout Association",null,null,"UK-##-C-04",null,"PAX",{"$f":"COUNTIF(registration[[#This Row],[Guest Type]],\"*APL*\")","v":0},{"$f":"COUNTIF(registration[[#This Row],[Guest Type]],\"PAX\")","v":1},{"$f":"COUNTIF(registration[[#This Row],[Guest Type]],CMT)","v":0}]
["EJPT / Contingent Support","UK United Kingdom","The Scout Association",null,null,"UK-##-C-05",null,"PAX",{"$f":"COUNTIF(registration[[#This Row],[Guest Type]],\"*APL*\")","v":0},{"$f":"COUNTIF(registration[[#This Row],[Guest Type]],\"PAX\")","v":1},{"$f":"COUNTIF(registration[[#This Row],[Guest Type]],CMT)","v":0}]
["EJPT / Contingent Support","UK United Kingdom","The Scout Association",null,null,"UK-##-C-06",null,"PAX",{"$f":"COUNTIF(registration[[#This Row],[Guest Type]],\"*APL*\")","v":0},{"$f":"COUNTIF(registration[[#This Row],[Guest Type]],\"PAX\")","v":1},{"$f":"COUNTIF(registration[[#This Row],[Guest Type]],CMT)","v":0}]
["EJPT / Contingent Support","UK United Kingdom","The Scout Association",null,null,"UK-##-C-07",null,"PAX",{"$f":"COUNTIF(registration[[#This Row],[Guest Type]],\"*APL*\")","v":0},{"$f":"COUNTIF(registration[[#This Row],[Guest Type]],\"PAX\")","v":1},{"$f":"COUNTIF(registration[[#This Row],[Guest Type]],CMT)","v":0}]
["EJPT / Contingent Support","UK United Kingdom","The Scout Association",null,null,"UK-##-C-08",null,"PAX",{"$f":"COUNTIF(registration[[#This Row],[Guest Type]],\"*APL*\")","v":0},{"$f":"COUNTIF(registration[[#This Row],[Guest Type]],\"PAX\")","v":1},{"$f":"COUNTIF(registration[[#This Row],[Guest Type]],CMT)","v":0}]
["EJPT / Contingent Support","UK United Kingdom","The Scout Association",null,null,"UK-##-C-09",null,"PAX",{"$f":"COUNTIF(registration[[#This Row],[Guest Type]],\"*APL*\")","v":0},{"$f":"COUNTIF(registration[[#This Row],[Guest Type]],\"PAX\")","v":1},{"$f":"COUNTIF(registration[[#This Row],[Guest Type]],CMT)","v":0}]
["EJPT / Contingent Support","UK United Kingdom","The Scout Association",null,null,"UK-##-D-01",null,"PAX",{"$f":"COUNTIF(registration[[#This Row],[Guest Type]],\"*APL*\")","v":0},{"$f":"COUNTIF(registration[[#This Row],[Guest Type]],\"PAX\")","v":1},{"$f":"COUNTIF(registration[[#This Row],[Guest Type]],CMT)","v":0}]
["EJPT / Contingent Support","UK United Kingdom","The Scout Association",null,null,"UK-##-D-02",null,"PAX",{"$f":"COUNTIF(registration[[#This Row],[Guest Type]],\"*APL*\")","v":0},{"$f":"COUNTIF(registration[[#This Row],[Guest Type]],\"PAX\")","v":1},{"$f":"COUNTIF(registration[[#This Row],[Guest Type]],CMT)","v":0}]
["EJPT / Contingent Support","UK United Kingdom","The Scout Association",null,null,"UK-##-D-03",null,"PAX",{"$f":"COUNTIF(registration[[#This Row],[Guest Type]],\"*APL*\")","v":0},{"$f":"COUNTIF(registration[[#This Row],[Guest Type]],\"PAX\")","v":1},{"$f":"COUNTIF(registration[[#This Row],[Guest Type]],CMT)","v":0}]
["EJPT / Contingent Support","UK United Kingdom","The Scout Association",null,null,"UK-##-D-04",null,"PAX",{"$f":"COUNTIF(registration[[#This Row],[Guest Type]],\"*APL*\")","v":0},{"$f":"COUNTIF(registration[[#This Row],[Guest Type]],\"PAX\")","v":1},{"$f":"COUNTIF(registration[[#This Row],[Guest Type]],CMT)","v":0}]
["EJPT / Contingent Support","UK United Kingdom","The Scout Association",null,null,"UK-##-D-05",null,"PAX",{"$f":"COUNTIF(registration[[#This Row],[Guest Type]],\"*APL*\")","v":0},{"$f":"COUNTIF(registration[[#This Row],[Guest Type]],\"PAX\")","v":1},{"$f":"COUNTIF(registration[[#This Row],[Guest Type]],CMT)","v":0}]
["EJPT / Contingent Support","UK United Kingdom","The Scout Association",null,null,"UK-##-D-06",null,"PAX",{"$f":"COUNTIF(registration[[#This Row],[Guest Type]],\"*APL*\")","v":0},{"$f":"COUNTIF(registration[[#This Row],[Guest Type]],\"PAX\")","v":1},{"$f":"COUNTIF(registration[[#This Row],[Guest Type]],CMT)","v":0}]
["EJPT / Contingent Support","UK United Kingdom","The Scout Association",null,null,"UK-##-D-07",null,"PAX",{"$f":"COUNTIF(registration[[#This Row],[Guest Type]],\"*APL*\")","v":0},{"$f":"COUNTIF(registration[[#This Row],[Guest Type]],\"PAX\")","v":1},{"$f":"COUNTIF(registration[[#This Row],[Guest Type]],CMT)","v":0}]
["EJPT / Contingent Support","UK United Kingdom","The Scout Association",null,null,"UK-##-D-08",null,"PAX",{"$f":"COUNTIF(registration[[#This Row],[Guest Type]],\"*APL*\")","v":0},{"$f":"COUNTIF(registration[[#This Row],[Guest Type]],\"PAX\")","v":1},{"$f":"COUNTIF(registration[[#This Row],[Guest Type]],CMT)","v":0}]
["EJPT / Contingent Support","UK United Kingdom","The Scout Association",null,null,"UK-##-D-09",null,"PAX",{"$f":"COUNTIF(registration[[#This Row],[Guest Type]],\"*APL*\")","v":0},{"$f":"COUNTIF(registration[[#This Row],[Guest Type]],\"PAX\")","v":1},{"$f":"COUNTIF(registration[[#This Row],[Guest Type]],CMT)","v":0}]
[]
[]
[]
[]
[null,null,null,null,null,null,null,"Dropdown menu","Dropdown menu","Dropdown menu","Dropdown menu",null,null,null,null,"Dropdown menu",null,null,"Dropdown menu"]
[null,null,null,null,null,null,null,"PAX",0,0,0,null,null,null,null,"gluten-free",null,null,"no"]
[null,null,null,null,null,null,null,"APL",1,1,1,null,null,null,null,"diabetics",null,null,"yes"]
[null,null,null,null,null,null,null,"APL (primary)",null,null,null,null,null,null,null,"standard"]
[null,null,null,null,null,null,null,"CMT",null,null,null,null,null,null,null,"halal"]
[null,null,null,null,null,null,null,null,null,null,null,null,null,null,null,"vegetarian"]
[null,null,null,null,null,null,null,null,null,null,null,null,null,null,null,"vegan"]
[null,null,null,null,null,null,null,null,null,null,null,null,null,null,null,"other (specify)"]